lending/lending_fUSD_20251218
["ID","MTS","AMOUNT","RATE_DAILY","PERIOD"]
[399068230,1766098752382,-296.28382588,0.00016032,2]
[399068231,1766098754948,-219.83581733,0.00016032,2]
[399068233,1766098757049,-275.3834998,0.00016032,2]
[399068238,1766098759287,-315.73844653,0.00016032,2]
[399068239,1766098759969,1056.0369,0.00015932,2]
[399068247,1766098761449,362.0898758,0.00015936,2]
[399068254,1766098762718,-347.82808543,0.00016032,2]
[399068261,1766098765641,-193.19480536,0.00016032,2]
[399068266,1766098767794,1000.0,0.00016032,2]
[399068270,1766098768346,-179.74411682,0.00016032,2]
[399068278,1766098770746,-260.35541288,0.00016032,2]
[399068279,1766098773159,-375.48121554,0.00016032,2]
[399068280,1766098774804,-292.19286651,0.00016032,2]
[399068282,1766098778401,-213.87349981,0.00016032,2]
[399068283,1766098782181,-161.22513077,0.00016032,2]
[399068284,1766098783422,-332.95863256,0.00016032,2]
[399068285,1766098785578,-402.51194612,0.00016032,2]
[399068286,1766098790350,-164.34956028,0.00016032,2]
[399068287,1766098793616,-162.13357402,0.00016032,2]
[399068288,1766098793654,507.41196162,0.00015934,2]
[399068289,1766098796232,-181.91678455,0.00016032,2]
[399068292,1766098799938,-313.08185299,0.00016032,2]
[399068293,1766098801230,300.0,0.00016031,2]
[399068294,1766098801278,1200.0,0.00016031,2]
[399068295,1766098801315,300.0,0.00016031,2]
[399068296,1766098802358,-296.95842432,0.00016032,2]
[399068300,1766098804872,284.0,0.00016032,2]
[399068306,1766098805532,-325.71023816,0.00016032,2]
[399068338,1766098809966,-174.28976184,0.00016032,2]
[399068339,1766098809990,-37.66623316,0.00016032,2]
[399068340,1766098811126,441.00546192,0.00015934,2]
[399068341,1766098811649,-264.58837617,0.00016032,2]
[399068344,1766098814796,-181.77919079,0.00016032,2]
[399068345,1766098817155,-15.96619988,0.00016032,2]
[399068346,1766098817179,-151.07516756,0.00016032,2]
[399068347,1766098818730,-212.98271857,0.00016032,2]
[399068348,1766098821719,500.0,0.00016031,2]
[399068349,1766098821766,500.0,0.00016031,2]
[399068350,1766098821812,500.0,0.00016031,2]
[399068351,1766098821859,170.18374705,0.00016031,2]
[399068352,1766098822020,413.43341741,0.00016031,2]
[399068353,1766098822056,86.56658259,0.00016031,2]
[399068354,1766098822111,500.0,0.00016031,2]
[399068355,1766098822153,500.0,0.00016031,2]
[399068356,1766098822193,500.0,0.00016031,2]
[399068357,1766098822233,500.0,0.00016031,2]
[399068358,1766098822276,500.0,0.00016031,2]
[399068359,1766098822319,500.0,0.00016031,2]
[399068360,1766098822425,500.0,0.00016031,2]
[399068361,1766098822475,500.0,0.00016031,2]
[399068362,1766098822537,500.0,0.00016031,2]
[399068363,1766098822582,500.0,0.00016031,2]
[399068364,1766098822638,500.0,0.00016031,2]
[399068365,1766098822680,500.0,0.00016031,2]
[399068366,1766098822728,500.0,0.00016031,2]
[399068368,1766098822789,500.0,0.00016031,2]
[399068369,1766098822863,500.0,0.00016031,2]
[399068370,1766098823053,-135.94211387,0.00016032,2]
[399068371,1766098823077,-106.20778659,0.00016032,2]
[399068372,1766098826998,-170.73447964,0.00016032,2]
[399068373,1766098830007,-215.66554425,0.00016032,2]
[399068374,1766098832800,-7.39218952,0.00016032,2]
[399068375,1766098832825,-209.19844699,0.00016032,2]
[399068376,1766098835113,-190.42285045,0.00016032,2]
[399068382,1766098839724,-100.37870256,0.00016032,2]
[399068384,1766098839750,-98.02810739,0.00016032,2]
[399068387,1766098840547,500.0,0.00016031,2]
[399068388,1766098840591,500.0,0.00016031,2]
[399068390,1766098840647,500.0,0.00016031,2]
[399068391,1766098840703,500.0,0.00016031,2]
[399068392,1766098840759,413.44341741,0.00016031,2]
[399068393,1766098840800,86.55658259,0.00016031,2]
[399068394,1766098840843,500.0,0.00016031,2]
[399068395,1766098840884,500.0,0.00016031,2]
[399068396,1766098840925,500.0,0.00016031,2]
[399068399,1766098841491,170.18374705,0.00016031,2]
[399068400,1766098842616,-201.50452493,0.00016032,2]
[399068401,1766098845578,-200.46736768,0.00016032,2]
[399068402,1766098845610,-67.23082217,0.00016032,2]
[399068405,1766098848778,-248.67430601,0.00016032,2]
[399068407,1766098852608,-309.38993992,0.00016032,2]
[399068408,1766098853248,179.89894701,0.00015936,2]
[399068410,1766098854436,-152.1072443,0.00016032,2]
[399068412,1766098856508,-193.29331881,0.00016032,2]
[399068414,1766098857078,236.60311818,0.00016031,2]
[399068415,1766098857626,151.0,0.00016032,2]
[399068417,1766098859097,-300.0,0.00016032,2]
[399068418,1766098861785,7675.76760517,0.0001589,2]
[399068419,1766098861817,4843.14474185,0.0001589,2]
[399068420,1766098862454,-194.90214422,0.00016032,2]
[399068449,1766098865792,-293.60067156,0.00016032,2]
[399068459,1766098868353,203.77230882,0.00015774,2]
[399068460,1766098868405,-250.0,0.00016032,2]
[399068461,1766098869103,500.0,0.00016031,2]
[399068462,1766098869345,500.0,0.00016031,2]
[399068463,1766098869581,500.0,0.00016031,2]
[399068467,1766098870636,156.04235594,0.00016031,2]
[399068468,1766098871581,-401.0,0.00016032,2]
[399068469,1766098873717,-180.97846882,0.00016032,2]
[399068470,1766098877376,-226.92795187,0.00016032,2]
[399068471,1766098878537,500.0,0.00016031,2]
[399068472,1766098878601,293.00127702,0.00016031,2]
[399068473,1766098879828,500.0,0.00016031,2]
[399068474,1766098879888,170.73447964,0.00016031,2]
[399068475,1766098880083,-313.90991379,0.00016032,2]
[399068476,1766098882397,-204.74874307,0.00016032,2]
[399068479,1766098884070,282.25650796,0.00016031,2]
[399068480,1766098887216,-255.84696866,0.00016032,2]
[399068481,1766098888157,500.0,0.00016031,2]
[399068482,1766098888808,-214.3288249,0.00016032,2]
[399068483,1766098889375,150.0,0.00015613,2]
[399068484,1766098890516,-229.10455312,0.00016032,2]
[399068485,1766098891609,901.05832877,0.00015932,2]
[399068486,1766098891641,98.94167123,0.00015932,2]
[399068487,1766098893072,-408.87890005,0.00016032,2]
[399068488,1766098894212,1403.13,0.00015711,2]
[399068489,1766098898429,-281.0,0.00016032,2]
[399068490,1766098901196,414.79211588,0.00016031,2]
[399068491,1766098901233,500.0,0.00016031,2]
[399068492,1766098901268,400.44617834,0.00016031,2]
[399068493,1766098901320,-168.31076252,0.00016032,2]
[399068494,1766098901356,604.74677541,0.00016031,2]
[399068495,1766098901554,500.0,0.00016031,2]
[399068496,1766098901611,500.0,0.00016031,2]
[399068497,1766098904660,-192.92312292,0.00016032,2]
[399068498,1766098906635,1104.90991568,0.00015933,2]
[399068499,1766098906867,-289.8386417,0.00016032,2]
[399068500,1766098907731,180.27928856,0.00015933,2]
[399068501,1766098910166,308.28496228,0.00015936,2]
[399068502,1766098910214,-211.955995,0.00016032,2]
[399068503,1766098910251,401.27,0.00015932,2]
[399068516,1766098919469,500.0,0.00016031,2]
[399068517,1766098921245,300.0,0.00016031,2]
[399068548,1766098930003,151.0,0.00016032,2]
[399068549,1766098930589,151.0,0.00016032,2]
[399068551,1766098932238,151.0,0.00016032,2]
[399068552,1766098932392,151.0,0.00016032,2]
[399068553,1766098933106,151.0,0.00016032,2]
[399068554,1766098933709,151.0,0.00016032,2]
[399068555,1766098934895,151.0,0.00016032,2]
[399068556,1766098934977,151.0,0.00016032,2]
[399068557,1766098935600,151.0,0.00016032,2]
[399068558,1766098936219,151.0,0.00016032,2]
[399068559,1766098936840,151.0,0.00016032,2]
[399068560,1766098937748,500.0,0.00016032,2]
[399068561,1766098938370,483.04639433,0.00016032,2]
[399068562,1766098950624,139.16269829,0.00016032,2]
[399068563,1766098950654,60.83730171,0.00016032,2]
[399068564,1766098950771,450.009,0.00016031,2]
[399068567,1766098981187,300.0,0.00016031,2]
[399068568,1766098982477,500.0,0.00016031,2]
[399068604,1766098995238,645.50218631,0.00016031,2]
[399068613,1766099002872,1500.0,0.00015619,2]
[399068614,1766099003650,500.0,0.00015932,2]
[399068616,1766099010843,500.0,0.00016031,2]
[399068617,1766099010901,500.0,0.00016031,2]
[399068618,1766099010955,236.05898136,0.00016031,2]
[399068619,1766099040427,1000.0,0.00015932,2]
[399068656,1766099047133,500.0,0.00016031,2]
[399068657,1766099054363,205.52330818,0.00015942,2]
[399068658,1766099062010,500.0,0.00016031,2]
[399068660,1766099069163,500.0,0.00016031,2]
[399068661,1766099069216,500.0,0.00016031,2]
[399068662,1766099069266,500.0,0.00016031,2]
[399068675,1766099074936,1102.07922244,0.00015933,2]
[399068676,1766099074965,9800.02071323,0.00015933,2]
[399068677,1766099080552,500.0,0.00016031,2]
[399068680,1766099089506,500.0,0.00016031,2]
[399068681,1766099089753,500.0,0.00016031,2]
[399068682,1766099090008,500.0,0.00016031,2]
[399068683,1766099094952,500.0,0.00016031,2]
[399068684,1766099094999,403.52253776,0.00016031,2]
[399068685,1766099095583,1000.0,0.00016031,2]
[399068687,1766099101202,1200.0,0.00016031,2]
[399068688,1766099101240,300.0,0.00016031,2]
[399068733,1766099110843,300.0,0.00016031,2]
[399068736,1766099121102,500.0,0.00016031,2]
[399068737,1766099128023,500.0,0.00016031,2]
[399068738,1766099128255,500.0,0.00016031,2]
[399068752,1766099158277,151.0,0.00016032,2]
[399068753,1766099158525,999.0,0.00015595,3]
[399068754,1766099158773,151.0,0.00016032,2]
[399068764,1766099173959,1495.48746224,0.00015932,2]
[399068765,1766099173996,10000.01,0.00015932,2]
[399068766,1766099174029,10000.01,0.00015932,2]
[399068767,1766099174062,10000.01,0.00015932,2]
[399068768,1766099174095,10000.01,0.00015932,2]
[399068769,1766099174129,10000.01,0.00015932,2]
[399068770,1766099174164,10000.01,0.00015932,2]
[399068771,1766099174195,10000.01,0.00015932,2]
[399068772,1766099174228,10000.01,0.00015932,2]
[399068773,1766099174262,10000.01,0.00015932,2]
[399068774,1766099194865,-4405.9151472,0.00015932,2]
[399068775,1766099194887,-10000.01,0.00015932,2]
[399068776,1766099194918,-10000.01,0.00015932,2]
[399068777,1766099195017,-10000.01,0.00015932,2]
[399068778,1766099195149,-10000.01,0.00015932,2]
[399068779,1766099195272,-10000.01,0.00015932,2]
[399068780,1766099197494,-10000.01,0.00015932,2]
[399068781,1766099197606,-10000.01,0.00015932,2]
[399068782,1766099197754,-10000.01,0.00015932,2]
[399068783,1766099197907,-10000.01,0.00015932,2]
[399068784,1766099203495,-10000.01,0.00015932,2]
[399068785,1766099203644,-10000.01,0.00015932,2]
[399068786,1766099203815,-10000.01,0.00015932,2]
[399068787,1766099203948,-10000.01,0.00015932,2]
[399068788,1766099204095,-10000.01,0.00015932,2]
[399068822,1766099271344,-624.48,0.00015522,2]
[399068823,1766099271396,-300.0,0.00015931,2]
[399068824,1766099271435,-290.35448111,0.00015931,2]
[399068825,1766099271473,-500.0,0.00015931,2]
[399068826,1766099271511,-473.32274279,0.00015931,2]
[399068827,1766099271545,-500.0,0.00015931,2]
[399068828,1766099271579,-500.0,0.00015931,2]
[399068829,1766099271613,-500.0,0.00015931,2]
[399068830,1766099271653,-500.0,0.00015931,2]
[399068831,1766099271689,-500.0,0.00015931,2]
[399068832,1766099271725,-224.677516,0.00015931,2]
[399068833,1766099271891,-500.0,0.00015931,2]
[399068834,1766099271926,-500.0,0.00015931,2]
[399068835,1766099271971,-500.0,0.00015931,2]
[399068836,1766099272014,-500.0,0.00015931,2]
[399068837,1766099272052,-525.0,0.00015931,2]
[399068838,1766099272098,-500.0,0.00015931,2]
[399068839,1766099272144,-500.0,0.00015931,2]
[399068840,1766099272191,-500.0,0.00015931,2]
[399068841,1766099272236,-500.0,0.00015931,2]
[399068842,1766099272277,-376.35635089,0.00015931,2]
[399068843,1766099272400,-197.29729822,0.00015931,2]
[399068844,1766099272458,-500.0,0.00015931,2]
[399068845,1766099272499,-500.0,0.00015931,2]
[399068846,1766099272538,-500.0,0.00015931,2]
[399068847,1766099272578,-500.0,0.00015931,2]
[399068848,1766099272618,-500.0,0.00015931,2]
[399068849,1766099272659,-500.0,0.00015931,2]
[399068850,1766099272700,-500.0,0.00015931,2]
[399068851,1766099272746,-500.0,0.00015931,2]
[399068852,1766099272800,-500.0,0.00015931,2]
[399068853,1766099272842,-105.41540356,0.00015931,2]
[399068854,1766099273447,-291.22241486,0.00015931,2]
[399068855,1766099273467,-103.36218158,0.00015931,2]
[399068856,1766099273479,-396.63781842,0.00015931,2]
[399068857,1766099275652,-103.36218158,0.00015931,2]
[399068858,1766099275693,-500.0,0.00015931,2]
[399068859,1766099275733,-500.0,0.00015931,2]
[399068860,1766099275776,-500.0,0.00015931,2]
[399068861,1766099275822,-500.0,0.00015931,2]
[399068862,1766099275864,-500.0,0.00015931,2]
[399068863,1766099276023,-4793.28563684,0.00015932,2]
[399068864,1766099276045,-10000.01,0.00015932,2]
[399068866,1766099280598,-221.82300627,0.00015832,2]
[399068867,1766099280644,-9556.36398746,0.00015932,2]
[399068868,1766099280737,-10000.01,0.00015932,2]
[399068870,1766099283702,-300.0,0.00015931,2]
[399068871,1766099283756,-1200.0,0.00015931,2]
[399068872,1766099283766,-8200.01,0.00015932,2]
[399068873,1766099283915,-10000.01,0.00015932,2]
[399068874,1766099284049,-10000.01,0.00015932,2]
[399068878,1766099284220,-10000.01,0.00015932,2]
[399068880,1766099284379,-10000.01,0.00015932,2]
[399068883,1766099288887,-500.0,0.00015931,2]
[399068884,1766099288929,-500.0,0.00015931,2]
[399068885,1766099288969,-500.0,0.00015931,2]
[399068886,1766099289011,-500.0,0.00015931,2]
[399068887,1766099289050,-500.0,0.00015931,2]
[399068888,1766099289090,-341.1382858,0.00015931,2]
[399068889,1766099289131,-500.0,0.00015931,2]
[399068890,1766099289169,-500.0,0.00015931,2]
[399068891,1766099289207,-500.0,0.00015931,2]
[399068892,1766099289289,-500.0,0.00015931,2]
[399068893,1766099289588,-500.0,0.00015931,2]
[399068894,1766099289597,-317.7334284,0.00015932,2]
[399068895,1766099289616,-500.0,0.00015932,2]
[399068896,1766099289636,-9000.01,0.00015932,2]
[399068897,1766099289972,-10000.01,0.00015932,2]
[399068898,1766099290092,-10000.01,0.00015932,2]
[399068899,1766099290437,-10000.01,0.00015932,2]
[399068900,1766099290572,-10000.01,0.00015932,2]
[399068901,1766099290730,-10000.01,0.00015932,2]
[399068903,1766099291087,-10000.01,0.00015932,2]
[399069062,1766099405491,999.72547674,7.669e-05,2]
[399069063,1766099405518,730.72452326,7.669e-05,2]
[399069064,1766099405695,269.00095348,8.073e-05,2]
[399069065,1766099405725,999.72547674,8.073e-05,2]
[399069066,1766099405753,461.72356978,8.073e-05,2]
[399069067,1766099405908,538.00190696,8.477e-05,2]
[399069068,1766099405935,999.72547674,8.477e-05,2]
[399069069,1766099405963,192.7226163,8.477e-05,2]
[399069070,1766099406130,807.00286044,8.88e-05,2]
[399069071,1766099406177,923.44713956,8.88e-05,2]
[399069072,1766099406362,76.27833718,9.284e-05,2]
[399069073,1766099406394,999.72547674,9.284e-05,2]
[399069074,1766099406426,654.44618608,9.284e-05,2]
[399069075,1766099406594,345.27929066,9.687e-05,2]
[399069076,1766099406625,999.72547674,9.687e-05,2]
[399069077,1766099406661,385.4452326,9.687e-05,2]
[399069078,1766099407122,1730.45,0.00010091,2]
[399069079,1766099407326,1730.45,0.00010495,2]
[399069081,1766099407540,1730.45,0.00010898,2]
[399069082,1766099407777,1730.45,0.00011302,2]
[399069083,1766099408460,1730.45,0.00011706,2]
[399069084,1766099409517,-349.30000017,0.00012109,2]
[399069085,1766099413309,-320.70058404,0.00012109,2]
[399069086,1766099416077,-469.50811255,0.00012109,2]
[399069087,1766099418704,-590.94130324,0.00012109,2]
[399069088,1766099418734,-802.62783929,0.00012513,2]
[399069089,1766099420205,-500.0,0.00012513,2]
[399069090,1766099424825,-385.26903495,0.00012513,2]
[399069091,1766099427571,-42.55312576,0.00012513,2]
[399069092,1766099427599,-172.80590919,0.00012917,2]
[399069093,1766099430374,-174.2819301,0.00012917,2]
[399069098,1766099432262,-1383.36216071,0.00012917,2]
[399069100,1766099432273,-1730.45,0.0001332,2]
[399069102,1766099432283,-1730.45,0.00013724,2]
[399069104,1766099432293,-1730.45,0.00014128,2]
[399069105,1766099432303,-1730.45,0.00014531,2]
[399069106,1766099432312,-300.0,0.00014602,2]
[399069107,1766099432322,-1730.45,0.00014935,2]
[399069108,1766099432331,-266.05864704,0.00015338,2]
[399069109,1766099432346,-999.0,0.00015338,2]
[399069119,1766099432430,-300.0,0.00015338,2]
[399069120,1766099432441,-165.39135296,0.00015338,2]
[399069121,1766099432451,-568.88679823,0.00015832,2]
[399069122,1766099432463,-526.8195669,0.00015832,2]
[399069123,1766099432475,-664.47020834,0.00015832,2]
[399069124,1766099432485,-1401.1804,0.00015832,2]
[399069125,1766099432494,-310.47939166,0.00015832,2]
[399069126,1766099432513,-197.52120834,0.00015832,2]
[399069128,1766099432523,-907.3032826,0.00015922,2]
[399069130,1766099432534,-743.5967174,0.00015922,2]
[399069131,1766099432544,-5.09966678,0.00015922,2]
[399069133,1766099432555,-700.0,0.00015922,2]
[399069135,1766099432567,-945.80033322,0.00015922,2]
[399069137,1766099432576,-300.0,0.00015931,2]
[399069139,1766099432586,-300.0,0.00015931,2]
[399069141,1766099432595,-160.69559117,0.00015931,2]
[399069143,1766099432607,-139.30440883,0.00015931,2]
[399069145,1766099432616,-1200.0,0.00015931,2]
[399069147,1766099432626,-95.79854507,0.00015932,2]
[399069148,1766099432638,-19599.44768391,0.00015932,2]
[399069181,1766099438364,-5866.00075425,0.00015932,2]
[399069182,1766099438376,-280.80017013,0.00015932,2]
[399069183,1766099438388,-3729.44527212,0.00015932,2]
[399069184,1766099438414,-24327.6303938,0.00015932,2]
[399069185,1766099438426,-822.627884,0.00015932,2]
[399069186,1766099438445,-540.01220046,0.00015932,2]
[399069187,1766099438458,-5009.47133818,0.00015932,2]
[399069464,1766099441291,-1.7e-07,0.00015932,2]
[399069468,1766099441312,-3561.99998,0.00015932,2]
[399069781,1766099447926,-1053.0,0.00015932,2]
[399069782,1766099447939,-1065.32192759,0.00015932,2]
[399069783,1766099447965,-1576.11240876,0.00015932,2]
[399069784,1766099447977,-311.57376575,0.00015932,2]
[399069791,1766099448459,-6468.92184294,0.00015932,2]
[399069820,1766099495815,1955.67154861,0.00015931,5]
[399069832,1766099568706,-166.66,0.00014486,2]
[399069833,1766099568740,-300.0,0.00014638,2]
[399069834,1766099568774,-166.66,0.00014791,2]
[399069835,1766099568810,-166.66,0.00015096,2]
[399069836,1766099568843,-1806.36,0.00015334,2]
[399069837,1766099568881,-166.66,0.00015401,2]
[399069838,1766099568915,-166.66,0.00015706,2]
[399069839,1766099568953,-300.0,0.00015831,2]
[399069840,1766099569166,-3520.69,0.00015832,2]
[399069841,1766099569281,-2731.30424125,0.00015832,2]
[399069842,1766099569312,-4537.4015175,0.00015832,2]
[399069843,1766099569321,-2500.0,0.00015832,2]
[399069844,1766099569331,-200.0,0.00015922,2]
[399069845,1766099569340,-31.30424125,0.00015922,2]
[399069846,1766099569379,-119.69575875,0.00015922,2]
[399069847,1766099569416,-151.0,0.00015922,2]
[399069848,1766099569451,-151.0,0.00015922,2]
[399069849,1766099569486,-151.0,0.00015922,2]
[399069850,1766099569521,-151.0,0.00015922,2]
[399069851,1766099569556,-151.0,0.00015922,2]
[399069852,1766099569590,-151.0,0.00015922,2]
[399069853,1766099569626,-151.0,0.00015922,2]
[399069854,1766099569663,-151.0,0.00015922,2]
[399069855,1766099569698,-300.0,0.00015931,2]
[399069856,1766099569741,-500.0,0.00015931,2]
[399069857,1766099569780,-500.0,0.00015931,2]
[399069858,1766099569820,-500.0,0.00015931,2]
[399069859,1766099569859,-500.0,0.00015931,2]
[399069860,1766099569902,-609.91181152,0.00015931,2]
[399069861,1766099569945,-500.0,0.00015931,2]
[399069862,1766099569991,-24.79485946,0.00015931,2]
[399069863,1766099570150,-475.20514054,0.00015931,2]
[399069864,1766099570161,-500.0,0.00015931,2]
[399069865,1766099570170,-500.0,0.00015931,2]
[399069866,1766099570181,-500.0,0.00015931,2]
[399069867,1766099570190,-500.0,0.00015931,2]
[399069868,1766099570200,-31.09818848,0.00015931,2]
[399069869,1766099570246,-468.90181152,0.00015931,2]
[399069870,1766099570289,-500.0,0.00015931,2]
[399069871,1766099570323,-250.0,0.00015931,2]
[399069872,1766099570358,-195.0,0.00015931,2]
[399069873,1766099570393,-300.0,0.00015932,2]
[399069874,1766099570427,-300.0,0.00015932,2]
[399069875,1766099571798,1940.475114,0.00015257,2]
[399069876,1766099581413,300.0,0.00015931,2]
[399069877,1766099583669,352.0,0.00015931,2]
[399069882,1766099586811,1000.0,0.0001534,2]
[399069891,1766099615007,547.0,0.00015931,2]
[399069902,1766099631292,2500.0,0.00015832,2]
[399069903,1766099642734,300.0,0.00015931,2]
[399069916,1766099701189,300.0,0.00015931,2]
[399069917,1766099701464,184.0,0.00015931,2]
[399069918,1766099701522,1200.0,0.00015931,2]
[399069919,1766099704150,2000.0,0.00015932,2]
[399069920,1766099708182,200.0,0.00015932,2]
[399069921,1766099712203,200.36684517,0.00015838,2]
[399069922,1766099721017,500.0,0.00015931,2]
[399069923,1766099721069,500.0,0.00015931,2]
[399069924,1766099721128,500.0,0.00015931,2]
[399069925,1766099721476,68.64315483,0.00015931,2]
[399069926,1766099721511,487.83491626,0.00015931,2]
[399069927,1766099748699,500.0,0.00015931,2]
[399069928,1766099748795,567.48781727,0.00015931,2]
[399069929,1766099781440,500.0,0.00015931,2]
[399069930,1766099781487,567.48781727,0.00015931,2]
[399069931,1766099785517,2208.8325,0.00015832,2]
[399069932,1766099798433,300.0,0.0001589,2]
[399069933,1766099807589,183.31760521,0.00015931,5]
[399069934,1766099812418,500.0,0.00015931,2]
[399069935,1766099812470,567.48781727,0.00015931,2]
[399069937,1766099825803,192.7688982,0.00015932,2]
[399069938,1766099825846,300.0,0.00015932,2]
[399069939,1766099832187,500.0,0.00015932,2]
[399069940,1766099832855,158.48137131,0.00015932,2]
[399069941,1766099832903,500.0,0.00015932,2]
[399069942,1766099833452,500.0,0.00015932,2]
[399069943,1766099833774,500.0,0.00015932,2]
[399069944,1766099834076,500.0,0.00015932,2]
[399069945,1766099834374,500.0,0.00015932,2]
[399069946,1766099834613,149.62886242,0.00015932,2]
[399069947,1766099834644,100.37113758,0.00015932,2]
[399069948,1766099834703,500.0,0.00015932,2]
[399069949,1766099835034,500.0,0.00015932,2]
[399069950,1766099835222,250.0,0.00015932,2]
[399069951,1766099835465,500.0,0.00015932,2]
[399069952,1766099835662,500.0,0.00015932,2]
[399069953,1766099835939,250.0,0.00015932,2]
[399069954,1766099836280,500.0,0.00015932,2]
[399069955,1766099836329,500.0,0.00015932,2]
[399069956,1766099836379,5511.0,0.00015932,2]
[399069957,1766099836705,255.55242947,0.00015932,2]
[399069958,1766099836866,500.0,0.00015932,2]
[399069959,1766099836939,133.08643295,0.00015932,2]
[399069960,1766099836974,366.91356705,0.00015932,2]
[399069961,1766099837023,804.93567447,0.00015932,2]
[399069962,1766099837199,574.12855637,0.00015932,2]
[399069963,1766099839184,500.0,0.00015932,2]
[399069964,1766099839247,500.0,0.00015932,2]
[399069965,1766099839291,500.0,0.00015932,2]
[399069966,1766099839379,500.0,0.00015932,2]
[399069967,1766099839431,500.0,0.00015932,2]
[399069968,1766099839494,500.0,0.00015932,2]
[399069969,1766099839848,500.0,0.00015932,2]
[399069970,1766099839917,250.0,0.00015932,2]
[399069971,1766099840439,500.0,0.00015932,2]
[399069972,1766099840537,250.0,0.00015932,2]
[399069973,1766099841202,250.0,0.00015932,2]
[399069974,1766099841811,250.0,0.00015932,2]
[399069975,1766099842421,250.0,0.00015932,2]
[399069976,1766099843046,250.0,0.00015932,2]
[399069977,1766099843641,250.0,0.00015932,2]
[399069979,1766099844258,250.0,0.00015932,2]
[399069981,1766099844872,250.0,0.00015932,2]
[399069984,1766099845480,250.0,0.00015932,2]
[399069986,1766099846079,500.0,0.00015932,2]
[399069987,1766099846256,250.0,0.00015932,2]
[399069990,1766099846794,500.0,0.00015932,2]
[399069992,1766099847410,500.0,0.00015932,2]
[399069994,1766099847461,4.03220211,0.00015932,2]
[399069995,1766099847490,245.96779789,0.00015932,2]
[399069997,1766099848087,250.0,0.00015932,2]
[399069998,1766099848126,500.0,0.00015932,2]
[399069999,1766099848708,582.52208254,0.00015932,2]
[399070000,1766099848749,250.0,0.00015932,2]
[399070001,1766099850091,250.0,0.00015932,2]
[399070002,1766099850169,250.0,0.00015932,2]
[399070003,1766099850513,427.24916276,0.00015932,2]
[399070004,1766099850560,250.0,0.00015932,2]
[399070005,1766099851184,250.0,0.00015932,2]
[399070006,1766099851801,250.0,0.00015932,2]
[399070007,1766099852423,250.0,0.00015932,2]
[399070008,1766099853046,250.0,0.00015932,2]
[399070009,1766099853650,250.0,0.00015932,2]
[399070010,1766099855221,151.0,0.00015932,2]
[399070011,1766099856800,209.40437684,0.00015932,2]
[399070012,1766099861165,5383.86657997,0.00015832,2]
[399070013,1766099861200,4326.58960295,0.00015832,2]
[399070014,1766099861240,582.9934841,0.00015932,2]
[399070015,1766099867329,200.0,0.00015494,2]
[399070016,1766099867971,207.4,0.00015494,2]
[399070018,1766099868579,215.0738,0.00015494,2]
[399070019,1766099869175,223.0315306,0.00015494,2]
[399070020,1766099870260,231.28369723,0.00015494,2]
[399070021,1766099870899,239.84119403,0.00015494,2]
[399070022,1766099872872,248.71531821,0.00015494,2]